bitfinex/quotes_ETHUSD_20251012
["timestamp","ask_amount","ask_price","bid_price","bid_amount"]
[1760248362797,5.3929962,3822.4,3822.3,0.002]
[1760248364071,8.2792452,3822.4,3822.3,0.002]
[1760248364273,8.7812552,3822.4,3822.3,0.002]
[1760248366198,8.0121032,3822.4,3822.3,0.002]
[1760248368373,3.4729962,3822.4,3822.3,0.002]
[1760248369676,5.3929962,3822.4,3822.3,0.002]
[1760248371215,20.5201762,3822.4,3822.3,0.002]
[1760248371376,18.8064362,3822.4,3822.3,0.002]
[1760248372418,27.9469772,3822.4,3822.3,0.002]
[1760248372585,22.88957671,3822.4,3822.3,0.002]
[1760248372791,3.25003118,3822.0,3821.9,1e-08]
[1760248373012,28.85673457,3821.7,3821.4,0.002]
[1760248373324,4.53663657,3821.7,3821.4,0.002]
[1760248373477,29.19775557,3821.7,3821.4,0.002]
[1760248373678,29.65475557,3821.7,3821.4,0.002]
[1760248374077,20.27297957,3821.7,3821.4,0.002]
[1760248374507,21.22083157,3821.7,3821.4,0.002]
[1760248374712,17.52321357,3821.7,3821.4,0.002]
[1760248374907,16.79321357,3821.7,3821.4,0.002]
[1760248375130,4.99363657,3821.7,3821.4,0.002]
[1760248379098,15.87292257,3821.7,3821.4,0.002]
[1760248379294,15.41042257,3821.7,3821.4,0.002]
[1760248380246,12.94651412,3821.7,3821.4,0.002]
[1760248380914,13.26390563,3821.7,3821.4,0.002]
[1760248381154,27.58401163,3821.7,3821.4,0.002]
[1760248381908,2.61677351,3821.5,3821.4,0.002]
[1760248382110,11.610201,3821.3,3821.2,0.002]
[1760248382310,11.424798,3821.3,3821.2,0.002]
[1760248382521,11.881798,3821.3,3821.2,0.002]
[1760248382844,13.01953203,3821.3,3821.2,0.002]
[1760248383006,9.75471303,3821.3,3821.2,0.002]
[1760248383210,9.68858103,3821.3,3821.2,0.002]
[1760248383504,9.28736503,3821.3,3821.2,0.002]
[1760248383738,7.63188603,3821.3,3821.2,0.002]
[1760248384038,7.22131247,3821.3,3821.2,0.002]
[1760248384353,4.99391047,3821.3,3821.2,0.002]
[1760248386941,9.31681002,3821.3,3821.2,0.002]
[1760248387130,7.11681002,3821.3,3821.2,0.002]
[1760248387338,9.31681002,3821.3,3821.2,0.002]
[1760248387529,7.11681002,3821.3,3821.2,0.002]
[1760248387839,9.22081002,3821.3,3821.2,0.002]
[1760248388039,7.11681002,3821.3,3821.2,0.002]
[1760248394247,2.12289955,3821.3,3821.2,0.002]
[1760248394431,4.49989955,3821.3,3821.2,0.002]
[1760248394638,2.377,3821.3,3821.2,0.002]
[1760248395233,4.99391047,3821.3,3821.2,0.002]
[1760248397087,2.377,3821.3,3821.2,0.002]
[1760248397290,1.92,3821.3,3821.2,0.002]
[1760248397764,2.377,3821.3,3821.2,0.002]
[1760248398984,1.92,3821.3,3821.2,0.002]
[1760248399450,1.92,3821.3,3821.2,2.61897895]
[1760248399896,1.92,3821.3,3821.2,0.002]
[1760248400095,2.3836,3821.3,3821.2,0.002]
[1760248400592,15.4034846,3821.3,3821.2,0.002]
[1760248400781,18.02039507,3821.3,3821.2,0.002]
[1760248403374,1.92,3821.3,3821.2,0.002]
[1760248403574,2.3635,3821.3,3821.2,0.002]
[1760248404706,1.92,3821.3,3821.2,0.002]
[1760248407076,0.001,3821.4,3821.2,0.002]
[1760248407675,0.001,3821.4,3821.3,2.61691047]
[1760248409203,0.001,3821.4,3821.3,3.08351047]
[1760248412495,0.001,3821.4,3821.3,3.71711047]
[1760248417698,0.001,3821.4,3821.3,3.82207241]
[1760248422941,0.001,3821.4,3821.3,3.95247241]
[1760248423651,0.001,3821.4,3821.3,5.87247241]
[1760248425230,0.001,3821.4,3821.3,3.95247241]
[1760248432348,0.001,3821.4,3821.3,3.95447241]
[1760248438346,0.001,3821.4,3821.3,3.82407241]
[1760248438855,0.001,3821.4,3821.3,3.71911047]
[1760248440254,0.001,3821.4,3821.3,3.25251047]
[1760248440577,0.001,3821.4,3821.3,3.71401047]
[1760248441382,0.001,3821.4,3821.3,3.97581047]
[1760248442448,0.001,3821.4,3821.3,3.84441047]
[1760248444676,0.001,3821.4,3821.3,5.76441047]
[1760248445591,0.001,3821.4,3821.3,5.00041047]
[1760248445897,0.001,3821.4,3821.3,3.08041047]
[1760248447870,0.001,3821.4,3821.3,2.61891047]
[1760248449255,0.001,3821.4,3821.3,0.002]
[1760248449456,2.56029955,3821.4,3821.3,0.002]
[1760248450400,4.48029955,3821.4,3821.3,0.002]
[1760248451004,2.12389955,3821.4,3821.3,0.002]
[1760248451373,0.001,3821.4,3821.3,2.61891047]
[1760248453495,0.1314,3821.4,3821.3,3.08041047]
[1760248456809,0.1314,3821.4,3821.3,3.71401047]
[1760248457785,0.001,3821.4,3821.3,3.71401047]
[1760248458183,0.001,3821.4,3821.3,3.84441047]
[1760248459996,0.001,3821.4,3821.3,3.97481047]
[1760248461815,1e-08,3822.2,3822.1,3.24996273]
[1760248461990,1e-08,3822.2,3822.1,8.40193084]
[1760248462190,1e-08,3822.2,3822.1,4.06766273]
[1760248462715,1e-08,3822.2,3822.1,4.19906273]
[1760248463630,1e-08,3822.2,3822.1,3.93726273]
[1760248467137,1e-08,3822.2,3822.1,2.61636273]
[1760248467417,1e-08,3822.2,3822.1,3.07416273]
[1760248467418,0.13040001,3822.2,3822.1,3.07416273]
[1760248467791,0.13040001,3822.2,3822.1,3.30366273]
[1760248468714,0.13040001,3822.2,3822.1,2.61636273]
[1760248470997,0.13040001,3822.2,3821.5,0.764]
[1760248470998,0.59220001,3822.2,3821.5,0.1304]
[1760248471206,0.1304,3821.5,3821.2,0.002]
[1760248471421,2.1488,3821.4,3821.2,0.002]
[1760248471623,2.6091,3821.4,3821.2,0.002]
[1760248472095,0.6891,3821.4,3821.2,0.002]
[1760248472301,7.53156811,3821.4,3821.2,0.002]
[1760248473723,6.59067523,3821.4,3821.2,0.002]
[1760248476501,6.59067523,3821.4,3821.2,2.61894456]
[1760248477336,1.92,3821.4,3821.3,2.61891047]
[1760248477496,1.92,3821.4,3821.3,0.002]
[1760248477827,1.92,3821.4,3821.3,2.61891047]
[1760248478194,2.3803,3821.4,3821.3,0.002]
[1760248478393,1.92,3821.4,3821.3,2.61891047]
[1760248478833,2.3803,3821.4,3821.3,2.61891047]
[1760248479128,2.3803,3821.4,3821.3,0.002]
[1760248479493,2.3803,3821.4,3821.3,2.61891047]
[1760248481005,1.92,3821.4,3821.3,2.61891047]
[1760248481397,4.21037523,3821.6,3821.5,2.61677351]
[1760248481801,4.64977523,3821.6,3821.5,2.61677351]
[1760248482219,4.21037523,3821.6,3821.4,2.61682613]
[1760248482422,4.64977523,3821.6,3821.4,2.61682613]
[1760248482605,4.21037523,3821.6,3821.4,2.61682613]
[1760248482807,0.4394,3821.5,3821.4,2.61682613]
[1760248483994,4.21037523,3821.6,3821.5,2.61677351]
[1760248484201,1.92,3821.8,3821.6,2.61665308]
[1760248484392,1.92,3821.4,3821.3,0.002]
[1760248485397,0.4394,3821.4,3821.3,0.002]
[1760248485827,0.4394,3821.4,3821.3,2.61891047]
[1760248486240,2.12289955,3821.6,3821.5,2.61677351]
[1760248486528,1.92,3822.1,3821.7,2.61663657]
[1760248486712,1.92000001,3822.2,3822.0,2.61643118]
[1760248486904,0.1304,3821.7,3821.5,0.4686]
[1760248487105,1e-08,3822.2,3822.1,2.61636273]
[1760248487513,1e-08,3822.2,3822.1,3.08496273]
[1760248488110,1e-08,3822.2,3822.1,2.61636273]
[1760248489626,1e-08,3822.2,3822.1,3.31096273]
[1760248489828,0.13040001,3822.2,3822.1,3.31096273]
[1760248491437,1e-08,3822.2,3822.1,3.94456273]
[1760248492955,1e-08,3822.2,3822.1,4.07496273]
[1760248494924,1e-08,3822.2,3822.1,4.17990484]
[1760248497644,0.001,3823.0,3822.9,3.24941521]
[1760248498146,0.001,3823.0,3822.9,3.68861521]
[1760248502313,0.001,3823.0,3822.9,2.61581521]
[1760248503044,0.001,3823.0,3822.6,0.6336]
[1760248503221,0.001,3823.0,3822.9,2.61581521]
[1760248503553,0.001,3823.0,3822.1,0.6672]
[1760248503726,0.4661,3822.9,3822.6,2.61596582]
[1760248503927,0.4661,3822.8,3822.4,2.61613145]
[1760248504125,0.4661,3822.7,3822.5,2.6160809]
[1760248504441,0.001,3823.0,3822.1,0.002]
[1760248504620,0.001,3823.0,3822.9,2.61581521]
[1760248505957,0.001,3823.0,3822.1,0.2195]
[1760248505958,0.4671,3823.0,3822.1,0.002]
[1760248506183,0.4671,3823.0,3822.6,2.61601653]
[1760248506379,0.4661,3822.9,3822.1,0.002]
[1760248506581,0.4661,3822.9,3822.2,2.61627547]
[1760248506782,0.4661,3822.9,3822.1,0.002]
[1760248506963,0.4661,3822.9,3822.5,2.61603477]
[1760248507166,0.4661,3822.9,3822.1,0.002]
[1760248507167,0.4661,3822.8,3822.1,0.002]
[1760248507357,0.4661,3822.8,3822.6,2.61601602]
[1760248507551,0.001,3823.0,3822.6,2.61601602]
[1760248507799,0.4661,3822.9,3822.7,2.61592629]
[1760248507981,0.1304,3822.7,3822.1,2.61833692]
[1760248508297,0.1304,3822.3,3822.2,3.24989428]
[1760248508578,0.001,3823.0,3822.9,2.61581521]
[1760248508966,0.001,3823.0,3822.8,2.61582686]
[1760248509171,0.001,3823.0,3822.9,2.61581521]
[1760248509548,0.001,3823.0,3822.9,3.05501521]
[1760248513783,0.001,3823.0,3822.9,2.61581521]
[1760248517187,0.001,3823.0,3822.9,3.05501521]
[1760248518257,0.001,3823.0,3822.9,2.61581521]
[1760248518462,0.1314,3823.0,3822.9,3.05501521]
[1760248519268,0.1314,3823.0,3822.9,3.68861521]
[1760248519269,0.001,3823.0,3822.9,3.68861521]
[1760248520461,0.001,3823.0,3822.9,3.24941521]
[1760248521201,0.4654,3823.0,3822.9,2.61581521]
[1760248521409,0.1304,3822.9,3822.7,2.61588874]
[1760248521602,0.001,3823.0,3822.8,2.61588364]
[1760248521785,0.4654,3823.0,3822.8,2.61588364]
[1760248522505,0.001,3823.0,3822.8,2.61588364]
[1760248522674,0.1304,3822.8,3822.6,0.002]
[1760248523006,1.921,3823.0,3822.6,0.002]
[1760248523007,0.4644,3822.7,3822.6,0.002]
[1760248523379,5.00035207,3822.7,3822.6,0.002]
[1760248523780,7.12325162,3822.7,3822.6,0.002]
[1760248524181,20.14081258,3822.7,3822.6,0.002]
[1760248525076,7.12325162,3822.7,3822.6,0.002]
[1760248527710,4.50729955,3822.7,3822.6,0.002]
[1760248528917,4.04289955,3822.7,3822.6,0.002]
[1760248529111,4.50729955,3822.7,3822.6,0.002]
[1760248529613,7.12325162,3822.7,3822.6,0.002]
[1760248530207,20.14081258,3822.7,3822.6,0.002]
[1760248533134,26.93217058,3822.7,3822.6,0.002]
[1760248533518,25.67677558,3822.7,3822.6,0.002]
[1760248533849,7.12325162,3822.7,3822.6,0.002]
[1760248535538,12.04704117,3822.7,3822.6,0.002]
[1760248536762,17.74383517,3822.7,3822.6,0.002]
[1760248537058,14.81194617,3822.7,3822.6,0.002]
[1760248537656,18.64459617,3822.7,3822.6,0.002]
[1760248538049,17.45765117,3822.7,3822.6,0.002]
[1760248538647,34.24986517,3822.7,3822.6,0.002]
[1760248538847,2.61622583,3822.3,3822.1,0.002]
[1760248539055,15.90504538,3822.3,3822.1,0.002]
[1760248539359,18.28944538,3822.3,3822.1,0.002]
[1760248539733,20.41034493,3822.3,3822.1,0.002]
[1760248540035,18.59615693,3822.3,3822.1,0.002]
[1760248540575,18.56586693,3822.3,3822.1,0.002]
[1760248541467,27.75460993,3822.3,3822.1,0.002]
[1760248541636,25.93302493,3822.3,3822.1,0.002]
[1760248542039,25.23825193,3822.3,3822.1,0.002]
[1760248542238,14.30920793,3822.3,3822.1,0.002]
[1760248542436,12.04531493,3822.3,3822.1,0.002]
[1760248544066,14.56080493,3822.3,3822.1,0.002]
[1760248544267,14.24043393,3822.3,3822.1,0.002]
[1760248544668,12.04531493,3822.3,3822.1,0.002]
[1760248544862,12.45573687,3822.3,3822.1,0.002]
[1760248545362,7.53194732,3822.3,3822.1,0.002]
[1760248545682,9.83951104,3822.3,3822.1,0.002]
[1760248546193,12.45573687,3822.3,3822.1,0.002]
[1760248546408,12.04531493,3822.3,3822.1,0.002]
[1760248546762,9.4290891,3822.3,3822.1,0.002]
[1760248546963,2.58229955,3822.3,3822.1,0.002]
[1760248547566,4.50229955,3822.3,3822.1,0.002]
[1760248547865,7.11852538,3822.3,3822.1,0.002]
[1760248554321,4.50229955,3822.3,3822.1,0.002]
[1760248554478,4.04089955,3822.3,3822.2,2.61829428]
[1760248554787,4.04089955,3822.3,3822.2,0.002]
[1760248554977,4.04089955,3822.3,3822.2,2.61829428]
[1760248555374,1.92,3822.3,3822.2,2.61829428]
[1760248555589,0.001,3822.8,3822.7,2.61595207]
[1760248556013,0.001,3822.8,3822.4,2.61610916]
[1760248556014,0.1304,3822.7,3822.6,2.61600531]
[1760248556172,0.001,3822.8,3822.6,2.61600531]
[1760248557006,0.1304,3822.6,3822.3,2.61621088]
[1760248557193,0.4533,3822.5,3822.2,0.002]
[1760248557378,0.4543,3822.8,3822.2,2.61828617]
[1760248557978,0.4543,3822.8,3822.3,2.61622053]
[1760248558398,0.4533,3822.7,3822.3,2.61622053]
[1760248558597,0.1304,3822.3,3822.2,0.002]
[1760248559014,0.1304,3822.3,3822.2,2.61829428]
[1760248559584,0.001,3822.8,3822.5,2.61607592]
[1760248560416,0.001,3822.8,3822.5,2.61607068]
[1760248560600,0.4543,3822.8,3822.5,2.61607068]
[1760248561106,4.04089955,3822.7,3822.5,2.61607068]
[1760248561313,0.1304,3822.5,3822.2,0.002]
[1760248561514,0.4533,3822.6,3822.3,2.61621471]
[1760248562077,0.1304,3822.3,3822.2,0.002]
[1760248562280,0.1304,3822.3,3822.2,2.61829428]
[1760248562713,2.12089955,3822.7,3822.4,2.61610933]
[1760248562897,2.12089955,3822.7,3822.2,2.61828758]
[1760248563105,2.12089955,3822.7,3822.5,2.6160599]
[1760248563627,0.1304,3822.5,3822.2,0.002]
[1760248563828,1.92,3822.6,3822.4,2.61610719]
[1760248564002,1.92,3822.6,3822.3,2.61622583]
[1760248564310,1.92,3822.6,3822.5,2.61608894]
[1760248564513,4.04089955,3822.7,3822.3,2.61622583]
[1760248564714,4.04089955,3822.7,3822.2,0.002]
[1760248564715,2.12089955,3822.7,3822.6,2.6160205]
[1760248565690,0.1304,3822.6,3822.2,0.002]
[1760248565914,2.12089955,3822.7,3822.6,2.6160205]
[1760248569423,0.1304,3822.6,3822.2,0.002]
[1760248569629,2.57419955,3822.7,3822.5,2.61608894]
[1760248569954,2.57419955,3822.7,3822.6,2.6160205]
[1760248569955,4.04089955,3822.7,3822.6,2.6160205]
[1760248570136,0.1304,3822.3,3822.2,0.002]
[1760248570819,0.5837,3822.3,3822.2,0.002]
[1760248571541,7.24082538,3822.3,3822.2,0.002]
[1760248572031,12.72410638,3822.3,3822.2,0.002]
[1760248572934,21.09309038,3822.3,3822.2,0.002]
[1760248573336,20.15694038,3822.3,3822.2,0.002]
[1760248573504,16.89170338,3822.3,3822.2,0.002]
[1760248573703,10.32336638,3822.3,3822.2,0.002]
[1760248574037,9.77743538,3822.3,3822.2,0.002]
[1760248574911,10.18783626,3822.3,3822.2,0.002]
[1760248576005,13.46783626,3822.3,3822.2,0.002]
[1760248576207,9.85310826,3822.3,3822.2,0.002]
[1760248576409,7.65122626,3822.3,3822.2,0.002]
[1760248582255,7.24082538,3822.3,3822.2,0.002]
[1760248583957,4.62459955,3822.3,3822.2,0.002]
[1760248584163,4.04089955,3822.3,3822.2,0.002]
[1760248584364,4.49939955,3822.3,3822.2,0.002]
[1760248587534,7.11562538,3822.3,3822.2,0.002]
[1760248587878,11.04439738,3822.3,3822.2,0.002]
[1760248588174,9.96525738,3822.3,3822.2,0.002]
[1760248588941,7.11562538,3822.3,3822.2,0.002]
[1760248589351,9.57701138,3822.3,3822.2,0.002]
[1760248589556,9.71175738,3822.3,3822.2,0.002]
[1760248590868,9.31379483,3822.3,3822.2,0.002]
[1760248591370,7.18767983,3822.3,3822.2,0.002]
[1760248591571,12.11302315,3822.3,3822.2,0.002]
[1760248592255,18.06790415,3822.3,3822.2,0.002]
[1760248592578,16.07662215,3822.3,3822.2,0.002]
[1760248593368,9.92006915,3822.3,3822.2,0.002]
[1760248593873,11.93021915,3822.3,3822.2,0.002]
[1760248594053,11.97407315,3822.3,3822.2,0.002]
[1760248594262,12.04469015,3822.3,3822.2,0.002]
[1760248594576,14.08573315,3822.3,3822.2,0.002]
[1760248594753,9.92006915,3822.3,3822.2,0.002]
[1760248594954,12.56942015,3822.3,3822.2,0.002]
[1760248595170,9.92006915,3822.3,3822.2,0.002]
[1760248595364,12.99626115,3822.3,3822.2,0.002]
[1760248595557,12.28088847,3822.3,3822.2,0.002]
[1760248596384,12.24625883,3822.2,3822.1,0.002]
[1760248596683,10.78375883,3822.2,3822.1,0.002]
[1760248596881,10.99814883,3822.2,3822.1,0.002]
[1760248597083,11.40856934,3822.2,3822.1,0.002]
[1760248597448,9.91290983,3822.2,3822.1,0.002]
[1760248599059,14.12288047,3822.2,3822.1,0.002]
[1760248599683,24.88049447,3822.2,3822.1,0.002]
[1760248600051,17.79585947,3822.2,3822.1,0.002]
[1760248600252,13.58588883,3822.2,3822.1,0.002]
[1760248600586,17.79585947,3822.2,3822.1,0.002]
[1760248600766,20.49512747,3822.2,3822.1,0.002]
[1760248601168,16.39825747,3822.2,3822.1,0.002]
[1760248601367,11.18828683,3822.2,3822.1,0.002]
[1760248601568,15.39825747,3822.2,3822.1,0.002]
[1760248601773,18.39468476,3822.2,3822.1,0.002]
[1760248601975,17.49168476,3822.2,3822.1,0.002]
[1760248602753,18.39906276,3822.2,3822.1,0.002]
[1760248603887,20.31968476,3822.2,3822.1,0.002]
[1760248604084,17.92068476,3822.2,3822.1,0.002]
[1760248604385,11.32366447,3822.2,3822.1,0.002]
[1760248604683,8.70737019,3822.2,3822.1,0.002]
[1760248604898,11.32366447,3822.2,3822.1,0.002]
[1760248605468,8.24887019,3822.2,3822.1,0.002]
[1760248605909,2.11889955,3822.2,3822.1,0.002]
[1760248606061,0.001,3822.6,3822.2,2.6162381]
[1760248606586,0.1304,3822.2,3822.1,0.002]
[1760248606783,0.1304,3822.2,3822.1,2.61836273]
[1760248607008,0.1314,3822.2,3822.1,2.61836273]
[1760248607984,0.1314,3822.2,3822.1,3.06466273]
[1760248608189,0.1314,3822.2,3822.1,2.61836273]
[1760248610388,0.1314,3822.2,3822.1,3.06466273]
[1760248611312,0.1314,3822.2,3822.1,3.29206273]
[1760248613833,0.1314,3822.2,3822.1,3.92566273]
[1760248614123,0.1314,3822.2,3822.1,8.13563337]
[1760248614124,0.001,3822.2,3822.1,8.13563337]
[1760248615054,0.001,3822.2,3822.1,3.92566273]
[1760248616889,0.001,3822.2,3822.1,4.05606273]
[1760248621242,0.001,3822.2,3822.1,8.26603337]
[1760248622834,0.001,3822.2,3822.1,4.05606273]
[1760248623647,0.001,3822.2,3822.1,0.1324]
[1760248623944,0.001,3822.2,3822.1,0.002]
[1760248624111,0.001,3822.2,3822.1,3.07166273]
[1760248624316,0.001,3822.2,3822.1,2.61836273]
[1760248624862,0.001,3822.2,3822.1,3.29486273]
[1760248630419,0.001,3822.2,3822.1,3.07166273]
[1760248631678,0.001,3822.2,3822.1,3.29486273]
[1760248635664,0.001,3822.2,3822.1,0.002]
[1760248635845,0.001,3822.2,3822.1,2.61836273]
[1760248636640,0.001,3822.2,3822.1,3.07166273]
[1760248637633,0.001,3822.2,3822.1,3.92846273]
[1760248638132,0.001,3822.2,3822.1,4.05886273]
[1760248639639,0.001,3822.2,3822.1,4.18926273]
[1760248639837,0.001,3822.2,3822.1,8.39923337]
[1760248646484,0.001,3822.2,3822.1,4.18926273]
[1760248652210,0.001,3822.2,3822.1,3.55566273]
[1760248652367,0.001,3822.2,3822.1,2.74876273]
[1760248652674,0.001,3822.2,3822.1,2.61836273]
[1760248652990,0.001,3822.2,3822.1,3.04606273]
[1760248653374,0.001,3822.2,3822.1,2.61836273]
[1760248653881,0.001,3822.2,3822.1,3.04606273]
[1760248655596,0.001,3822.2,3822.1,2.61836273]
[1760248657909,0.001,3822.2,3822.1,3.04606273]
[1760248662617,0.001,3822.2,3822.1,3.26926273]
[1760248662811,0.001,3822.6,3822.1,3.26926273]
[1760248662812,1e-08,3822.6,3822.5,2.61608894]
[1760248663106,0.001,3823.8,3823.7,5.16886793]
[1760248663275,0.001,3823.8,3823.7,10.22120385]
[1760248663483,0.001,3823.8,3823.7,10.75380826]
[1760248663898,4.92193592,3826.2,3824.6,2.61465251]
[1760248664237,4.92193592,3825.3,3823.8,0.4409]
[1760248664528,0.1714,3825.8,3823.7,0.10490441]
[1760248664529,5.36313592,3824.7,3823.7,0.10490441]
[1760248664682,5.36313592,3824.7,3823.2,0.1301]
[1760248664683,4.92193592,3824.6,3823.2,0.1301]
[1760248664883,4.92193592,3824.6,3823.9,2.61507717]
[1760248665485,4.92193592,3824.6,3823.8,2.6151916]
[1760248665687,0.4412,3824.5,3823.8,2.6151916]
[1760248667009,0.4412,3824.5,3823.9,2.61512313]
[1760248667994,2.3612,3824.5,3823.4,2.61541958]
[1760248668200,4.97598256,3824.5,3823.5,2.61540473]
[1760248668396,1.92,3823.9,3823.3,2.61553713]
[1760248668706,0.4412,3823.8,3823.4,2.61545192]
[1760248669628,1.92,3823.9,3823.5,2.61540321]
[1760248669917,2.3612,3824.2,3823.6,2.61532469]
[1760248670282,0.4412,3824.2,3823.7,2.61524182]
[1760248671897,0.4412,3824.2,3823.5,2.61534233]
[1760248672102,0.4412,3824.2,3823.6,2.61527799]
[1760248672598,0.4422,3824.2,3823.7,2.61525636]
[1760248672804,0.001,3824.2,3823.7,2.61525636]
[1760248673330,0.001,3824.2,3823.5,2.61534367]
[1760248673531,0.4361,3824.2,3823.6,2.61530142]
[1760248673838,0.4361,3824.2,3823.7,2.61526474]
[1760248674193,0.1304,3823.7,3823.5,2.61535273]
[1760248674516,0.4361,3824.2,3823.6,2.61533499]
[1760248675313,0.4361,3824.2,3823.6,2.61533587]
[1760248676724,0.4361,3824.2,3823.4,2.61546057]
[1760248676725,0.4361,3824.2,3823.7,2.6152438]
[1760248677224,0.4351,3824.1,3823.7,2.6152438]
[1760248677809,0.4351,3824.1,3823.5,2.61533932]
[1760248677810,0.1304,3823.7,3823.5,2.61533932]
[1760248678121,0.4351,3824.1,3823.5,2.61540473]
[1760248678332,1.92,3824.0,3823.5,2.61540473]
[1760248678628,0.1304,3823.5,3823.3,0.4351]
[1760248678794,1.92,3823.7,3822.5,0.1304]
[1760248679000,4.92193592,3823.2,3822.1,0.8038]
[1760248679207,2.3551,3823.1,3822.4,0.7871774]
[1760248679525,0.1304,3822.4,3822.1,0.002]
[1760248679726,4.92193592,3822.9,3822.1,0.002]
[1760248679947,4.92193592,3822.9,3822.3,2.61622171]
[1760248680412,0.1304,3822.3,3822.2,3.06448534]
[1760248680600,4.92193592,3823.1,3822.5,2.61606493]
[1760248680801,4.92193592,3823.1,3822.6,2.61600659]
[1760248681001,0.1304,3822.2,3822.1,0.2187]
[1760248681227,0.1304,3822.2,3822.1,2.61836273]
[1760248681830,0.1304,3822.2,3822.1,0.002]
[1760248682231,0.5655,3822.2,3822.1,0.002]
[1760248682741,2.4855,3822.2,3822.1,0.002]
[1760248683738,5.10179428,3822.2,3822.1,0.002]
[1760248684632,9.5455,3822.2,3822.1,0.002]
[1760248686200,12.16179428,3822.2,3822.1,0.002]
[1760248686807,9.5455,3822.2,3822.1,0.002]
[1760248688335,9.1104,3822.2,3822.1,0.002]
[1760248688707,9.5455,3822.2,3822.1,0.002]
[1760248694535,12.16179428,3822.2,3822.1,0.002]
[1760248695122,9.5455,3822.2,3822.1,0.002]
[1760248695837,12.16179428,3822.2,3822.1,0.002]
[1760248699564,14.46743592,3822.2,3822.1,0.002]
[1760248700828,9.1104,3822.2,3822.1,0.002]
[1760248701056,7.06,3822.2,3822.1,2.61836273]
[1760248701547,7.06,3822.5,3822.1,2.61836273]
[1760248701752,0.4549,3822.4,3822.1,0.002]
[1760248702146,4.92193592,3822.3,3822.1,0.002]
[1760248702522,0.4549,3822.2,3822.1,0.002]
[1760248704329,3.07119428,3822.2,3822.1,0.002]
[1760248704531,10.13119428,3822.2,3822.1,0.002]
[1760248706356,7.5149,3822.2,3822.1,0.002]
[1760248707054,7.06,3822.2,3822.1,0.002]
[1760248707258,7.5149,3822.2,3822.1,0.002]
[1760248707455,9.4349,3822.2,3822.1,0.002]
[1760248708532,12.05119428,3822.2,3822.1,0.002]
[1760248711531,23.77438428,3822.2,3822.1,0.002]
[1760248711931,16.71521228,3822.2,3822.1,0.002]
[1760248713265,11.59449964,3821.9,3821.8,0.002]
[1760248713577,5.1701681,3821.8,3821.7,0.002]
[1760248713868,9.80426051,3821.5,3821.4,0.002]
[1760248714158,26.12125743,3821.5,3821.4,0.002]
[1760248714357,26.57395743,3821.5,3821.4,0.002]
[1760248714527,25.24880843,3821.5,3821.4,0.002]
[1760248715132,25.10106643,3821.5,3821.4,0.002]
[1760248715573,22.7404463,3821.5,3821.4,0.002]
[1760248715775,22.1324823,3821.5,3821.4,0.002]
[1760248716060,22.54299967,3821.5,3821.4,0.002]
[1760248716256,23.5574258,3821.5,3821.4,0.002]
[1760248716458,21.8222688,3821.5,3821.4,0.002]
[1760248716661,18.0135268,3821.5,3821.4,0.002]
[1760248717238,20.3779658,3821.5,3821.4,0.002]
[1760248717437,28.80253084,3821.5,3821.4,0.002]
[1760248717637,32.55365784,3821.5,3821.4,0.002]
[1760248717834,31.38065884,3821.5,3821.4,0.002]
[1760248718661,33.15547184,3821.5,3821.4,0.002]
[1760248718861,32.57552784,3821.5,3821.4,0.002]
[1760248719045,28.80522784,3821.5,3821.4,0.002]
[1760248719250,26.43809184,3821.5,3821.4,0.002]
[1760248719439,28.83453684,3821.5,3821.4,0.002]
[1760248719634,26.43809184,3821.5,3820.0,2.61778161]
[1760248719851,1.92,3820.7,3820.0,2.61778161]
[1760248720069,1.92,3820.5,3820.0,2.61778161]
[1760248720442,0.4527,3820.4,3820.0,2.61778161]
[1760248720669,0.4527,3820.3,3820.0,2.61778161]
[1760248722039,7.048,3820.2,3820.0,2.61778161]
[1760248723242,7.048,3820.2,3820.1,2.61773252]
[1760248724859,0.1304,3820.1,3820.0,2.61979173]
[1760248725175,7.048,3820.2,3820.0,2.61979173]
[1760248725871,8.86816504,3820.1,3820.0,0.002]
[1760248726171,6.57588252,3820.1,3820.0,0.002]
[1760248727774,9.19361504,3820.1,3820.0,0.002]
[1760248728070,1.92,3820.1,3820.0,0.002]
[1760248730951,8.968,3820.1,3820.0,0.002]
[1760248731862,9.4207,3820.1,3820.0,0.002]
[1760248733590,4.99043252,3820.1,3820.0,0.002]
[1760248734285,2.3727,3820.1,3820.0,0.002]
[1760248739403,1.92,3820.1,3820.0,0.002]
[1760248740291,6.13228252,3820.1,3820.0,0.002]
[1760248740803,6.58498252,3820.1,3820.0,0.002]
[1760248741377,16.33334356,3820.1,3820.0,0.002]
[1760248741775,2.61800664,3819.7,3819.6,0.002]
[1760248741988,8.75028916,3819.7,3819.6,0.002]
[1760248742303,9.20228916,3819.7,3819.6,0.002]
[1760248742612,12.09938016,3819.7,3819.6,0.002]
[1760248742911,11.20328416,3819.7,3819.6,0.002]
[1760248743118,9.20228916,3819.7,3819.6,0.002]
[1760248743470,18.03313122,3819.7,3819.6,0.002]
[1760248744494,2.372,3819.7,3819.6,0.002]
[1760248745398,4.99000664,3819.7,3819.6,0.002]
[1760248746397,18.03313122,3819.7,3819.6,0.002]
[1760248747397,25.08113122,3819.7,3819.6,0.002]
[1760248749042,34.87288422,3819.7,3819.6,0.002]
[1760248749317,25.08113122,3819.7,3819.6,0.002]
[1760248749694,9.42,3819.7,3819.6,0.002]